bitfinex-derivatives/quotes_ETHF0:USTF0_20260308
["timestamp","ask_amount","ask_price","bid_price","bid_amount"]
[1772972745363,5.19591694,1942.2,1941.3,4.81357633]
[1772972773583,4.73533797,1942.4,1941.4,4.88315652]
[1772972780184,4.73533797,1942.4,1941.5,21.52015652]
[1772972780383,4.73533797,1942.4,1941.6,21.52115652]
[1772972780584,4.73533797,1942.4,1941.6,21.52215652]
[1772972782091,4.73533797,1942.4,1941.0,18.80793101]
[1772972782292,4.73533797,1942.4,1941.2,4.88315652]
[1772972782591,4.73533797,1942.4,1941.3,4.88315652]
[1772972783092,4.72962167,1942.2,1941.3,4.88315652]
[1772972783387,4.72962167,1942.2,1941.2,4.88315652]
[1772972783693,4.72962167,1942.0,1941.1,21.52915652]
[1772972784094,4.72962167,1941.8,1941.1,21.52915652]
[1772972784887,4.72962167,1941.8,1941.2,4.88315652]
[1772972787086,4.72962167,1942.3,1941.2,4.88315652]
[1772972788090,4.72962167,1942.3,1941.4,4.88315652]
[1772972788291,4.72962167,1942.3,1941.6,4.88315652]
[1772972799604,4.79975099,1942.4,1941.6,4.88315652]
[1772972820527,4.79975099,1942.4,1941.5,4.68464823]
[1772972821325,0.0057163,1942.4,1941.5,4.94218823]
[1772972821524,0.0057163,1942.4,1941.7,4.68464823]
[1772972822023,4.79403469,1942.7,1941.9,4.68464823]
[1772972822221,4.79403469,1942.7,1942.1,4.68464823]
[1772972822727,4.85801829,1943.4,1942.1,4.68464823]
[1772972823025,4.85801829,1943.3,1942.3,4.55337211]
[1772972824828,4.85801829,1943.3,1942.4,16.598]
[1772972825026,4.85801829,1943.3,1942.4,21.19709216]
[1772972825222,4.85801829,1943.3,1942.5,4.59909216]
[1772972825625,4.85801829,1943.3,1942.4,16.598]
[1772972826328,4.85801829,1943.3,1942.5,4.59909216]
[1772972826827,4.85801829,1943.3,1942.4,21.19709216]
[1772972827830,4.85801829,1943.3,1942.5,4.59909216]
[1772972828733,4.85801829,1943.3,1942.4,16.598]
[1772972828930,4.85801829,1943.3,1942.4,21.19709216]
[1772972829426,4.85801829,1943.3,1942.5,4.59909216]
[1772972830027,4.40881898,1943.1,1942.4,16.598]
[1772972830226,4.40881898,1943.1,1942.4,21.19709216]
[1772972830428,4.40881898,1943.1,1942.5,4.59909216]
[1772972832127,4.40881898,1943.3,1942.5,4.59909216]
[1772972845738,4.40881898,1943.7,1942.7,4.59909216]
[1772972846738,4.40881898,1943.9,1942.7,4.59909216]
[1772972846941,4.40881898,1943.9,1942.4,16.85542]
[1772972846942,4.41286581,1943.9,1942.9,4.59909216]
[1772972847143,4.41286581,1943.9,1943.1,4.59909216]
[1772972847742,4.40881898,1944.6,1943.1,4.59909216]
[1772972848038,4.82085922,1945.0,1943.5,4.59909216]
[1772972848345,4.82085922,1945.0,1943.7,4.59909216]
[1772972848641,4.40881898,1945.0,1943.7,4.59909216]
[1772972848839,4.41369082,1945.0,1943.7,4.60414465]
[1772972849143,4.41369082,1945.0,1943.9,4.59909216]
[1772972852148,4.41369082,1945.0,1944.1,4.59909216]
[1772972853149,4.4866561,1944.8,1943.8,4.78602507]
[1772972853649,4.4866561,1944.6,1943.8,4.78602507]
[1772972855051,4.4866561,1944.9,1943.8,4.78602507]
[1772972855649,4.4866561,1944.9,1944.0,4.78602507]
[1772972855846,0.00487184,1945.0,1944.0,4.78602507]
[1772972856051,4.4866561,1944.9,1944.0,4.78602507]
[1772972857154,0.00487184,1945.0,1943.7,0.00505249]
[1772972857155,4.4866561,1944.7,1943.7,0.00505249]
[1772972857455,4.4866561,1944.7,1943.8,4.78602507]
[1772972858448,4.4866561,1944.5,1943.7,0.00505249]
[1772972858752,4.4866561,1944.3,1943.7,0.00505249]
[1772972860349,3.42830664,1944.3,1943.7,0.00505249]
[1772972863256,3.42830664,1944.3,1943.7,4.79107756]
[1772972863949,3.42830664,1944.3,1943.7,0.00505249]
[1772972864350,3.42830664,1944.3,1943.5,4.78602507]
[1772972864859,4.4866561,1944.1,1942.9,4.78602507]
[1772972865252,4.4866561,1943.9,1942.9,4.79100706]
[1772972865654,4.4866561,1943.7,1942.9,4.79100706]
[1772972867348,4.4866561,1944.5,1943.1,4.78602507]
[1772972867756,4.4866561,1944.3,1943.1,4.78602507]
[1772972868157,5.42120016,1944.2,1943.1,4.78602507]
[1772972868357,4.4866561,1944.1,1943.1,4.78602507]
[1772972868659,4.4866561,1943.9,1943.1,4.78602507]
[1772972874859,10.12,1944.5,1943.1,4.78602507]
[1772972875162,4.4866561,1944.3,1943.1,4.78602507]
[1772972876964,4.4866561,1944.7,1943.1,5.04334507]
[1772972877162,4.4866561,1944.7,1943.3,4.78602507]
[1772972877454,4.4866561,1944.6,1943.3,4.78602507]
[1772972877855,4.4866561,1944.4,1943.3,4.78602507]
[1772972878563,4.4866561,1944.2,1943.3,4.78602507]
[1772972885770,4.51859897,1944.7,1943.4,4.76955438]
[1772972886171,4.51859897,1944.5,1943.4,4.76955438]
[1772972890379,4.51859897,1944.5,1943.6,4.76955438]
[1772972891181,4.51859897,1944.3,1943.4,4.76955438]
[1772972896485,4.51859897,1944.1,1943.4,4.76955438]
[1772972896884,4.51859897,1944.1,1943.3,21.08955438]
[1772972897085,4.51859897,1943.9,1943.2,4.76955438]
[1772972897384,4.51859897,1944.0,1943.2,4.76955438]
[1772972898986,4.51859897,1944.5,1943.2,4.76955438]
[1772972899380,4.51859897,1944.4,1943.2,4.76955438]
[1772972900385,4.51859897,1944.6,1943.6,4.76955438]
[1772972900581,4.51859897,1944.9,1943.8,4.76955438]
[1772972900778,4.51859897,1944.9,1943.9,4.76955438]
[1772972900978,4.51859897,1944.9,1944.0,4.76955438]
[1772972904886,4.52347081,1945.0,1944.0,4.76955438]
[1772972909792,4.52347081,1945.0,1944.2,4.76955438]
[1772972909987,0.00487184,1945.0,1944.2,4.76955438]
[1772972910191,4.52347081,1945.0,1944.2,4.76955438]
[1772972910391,0.00487184,1945.0,1944.2,4.76955438]
[1772972910785,0.00487184,1945.0,1944.2,5.17398369]
[1772972910992,4.51859897,1945.6,1944.4,4.76955438]
[1772972911288,4.51859897,1945.6,1944.6,4.76955438]
[1772972911697,4.51859897,1945.6,1944.8,4.76955438]
[1772972911898,0.0048556,1945.6,1944.8,4.77459007]
[1772972912196,0.46099144,1945.7,1945.0,4.76955438]
[1772972912389,0.46099144,1945.7,1945.2,4.76955438]
[1772972913098,0.46684035,1945.7,1945.2,4.76955438]
[1772972913896,5.0969667,1945.7,1945.2,4.76955438]
[1772972915094,0.05444035,1945.7,1945.2,4.76955438]
[1772972915798,4.63012635,1946.2,1945.4,4.38336064]
[1772972915998,4.63012635,1946.2,1945.6,4.38336064]
[1772972916698,0.00617276,1946.2,1945.6,4.38336064]
[1772972917296,0.00617276,1946.2,1945.7,5.75464522]
[1772972917491,4.63012635,1946.5,1945.8,4.38336064]
[1772972917697,4.63012635,1947.2,1946.0,4.38336064]
[1772972917897,4.63012635,1947.2,1946.2,4.38336064]
[1772972918097,4.63012635,1947.1,1946.3,4.38336064]
[1772972918293,4.63012635,1947.1,1946.0,16.349]
[1772972918502,4.63012635,1946.9,1946.3,0.00401333]
[1772972918702,4.63012635,1947.0,1946.3,4.38737397]
[1772972919096,0.00398809,1947.1,1946.5,4.38336064]
[1772972919294,0.00398809,1947.1,1946.7,4.38336064]
[1772972919802,4.26355303,1948.9,1946.6,16.353]
[1772972919803,4.63012635,1948.4,1946.9,4.38336064]
[1772972920199,4.63012635,1948.2,1947.1,4.38336064]
[1772972920396,4.63012635,1948.0,1946.7,20.62936064]
[1772972920793,4.63012635,1947.8,1946.7,20.62936064]
[1772972920992,4.63012635,1947.8,1946.8,4.38336064]
[1772972921194,0.005158,1948.0,1946.9,4.38336064]
[1772972921398,4.22288435,1948.1,1946.9,4.38336064]
[1772972921592,4.22288435,1948.1,1947.1,4.38336064]
[1772972921797,4.63012635,1948.6,1947.3,4.38336064]
[1772972922101,4.63012635,1948.6,1947.4,16.266]
[1772972922299,4.63012635,1948.4,1947.4,20.64936064]
[1772972922500,4.88675635,1948.4,1947.1,4.38336064]
[1772972922798,4.63012635,1948.2,1947.1,4.38336064]
[1772972923299,4.63012635,1948.0,1947.1,4.38336064]
[1772972923698,4.63012635,1948.2,1947.3,4.38336064]
[1772972923899,4.63012635,1948.2,1947.5,4.38336064]
[1772972924195,4.63012635,1948.2,1947.7,4.38336064]
[1772972924395,4.63012635,1948.2,1947.7,4.38861008]
[1772972924799,4.63012635,1948.4,1947.7,4.38861008]
[1772972925006,4.63679069,1948.6,1947.9,4.38336064]
[1772972925304,4.63679069,1948.6,1948.0,4.38336064]
[1772972926006,0.00666434,1948.6,1948.0,4.38336064]
[1772972926607,4.63679069,1948.6,1948.0,4.38336064]
[1772972926808,0.00666434,1948.6,1948.0,4.38336064]
[1772972927003,0.00666434,1948.6,1948.2,4.38336064]
[1772972927199,0.25646,1949.7,1948.2,4.38336064]
[1772972927200,4.63012635,1949.0,1948.2,4.38336064]
[1772972927506,4.63012635,1949.5,1948.4,4.38336064]
[1772972927699,4.63012635,1949.5,1948.6,4.38336064]
[1772972928003,4.63012635,1949.5,1948.5,21.98217424]
[1772972928196,4.63456767,1949.5,1948.4,4.38336064]
[1772972928402,4.63012635,1949.3,1948.1,16.256]
[1772972928605,4.63012635,1949.3,1948.1,20.63936064]
[1772972928800,4.63012635,1949.1,1948.2,4.38336064]
[1772972929006,4.63012635,1949.1,1948.3,4.38336064]
[1772972929199,0.00444132,1949.5,1948.3,4.38336064]
[1772972929405,4.63456767,1949.5,1948.5,4.38336064]
[1772972929705,4.63456767,1949.5,1948.6,4.38336064]
[1772972930299,4.63012635,1949.3,1948.0,4.38336064]
[1772972930706,4.63012635,1949.1,1948.1,4.38336064]
[1772972931403,4.63012635,1948.9,1948.1,4.38336064]
[1772972932099,4.63012635,1949.4,1948.1,4.38336064]
[1772972932307,4.63012635,1949.4,1948.3,4.38336064]
[1772972932606,4.63012635,1949.3,1948.3,19.81736064]
[1772972933006,4.63012635,1949.3,1948.4,4.38336064]
[1772972933208,4.63012635,1949.1,1948.0,4.38336064]
[1772972933599,4.63012635,1948.9,1948.0,4.38336064]
[1772972934499,4.63012635,1948.9,1947.9,15.417]
[1772972934808,4.63012635,1948.7,1947.8,4.38336064]
[1772972935103,4.63012635,1948.5,1947.7,0.00524944]
[1772972935503,5.39694454,1948.6,1947.4,4.38336064]
[1772972935504,4.63012635,1948.3,1947.4,4.38336064]
[1772972936707,4.63012635,1948.3,1947.4,4.38856625]
[1772972937109,4.63012635,1948.1,1947.4,0.00520561]
[1772972937304,4.63532429,1948.1,1947.4,0.00520561]
[1772972937701,4.63012635,1947.9,1947.0,4.38336064]
[1772972938108,4.63012635,1947.7,1947.0,4.38336064]
[1772972938808,4.63012635,1947.7,1947.0,4.38868543]
[1772972940304,4.63012635,1947.7,1947.0,0.00532479]
[1772972940505,4.63012635,1947.7,1946.6,4.38336064]
[1772972940506,5.3728078,1947.6,1946.6,4.38336064]
[1772972940706,4.63012635,1948.0,1946.6,4.38336064]
[1772972941012,0.00519794,1948.1,1946.8,4.38336064]
[1772972941208,4.63532429,1948.1,1947.0,4.38336064]
[1772972941408,4.63532429,1948.1,1947.0,4.38727298]
[1772972948717,0.00519794,1948.1,1947.2,4.61276788]
[1772972949118,4.62843327,1948.1,1947.2,4.61276788]
[1772972951519,0.00519794,1948.1,1947.2,4.61276788]
[1772972951719,4.62843327,1948.1,1947.2,4.61276788]
[1772972956618,4.62843327,1948.1,1947.0,4.61668022]
[1772972956923,4.62323533,1947.9,1947.0,4.61668022]
[1772972957322,4.62323533,1947.7,1947.0,0.00391234]
[1772972959019,4.62323533,1947.5,1946.8,4.61276788]
[1772972959825,4.62323533,1947.5,1946.6,4.61276788]
[1772972960124,4.62323533,1947.5,1946.6,4.61750833]
[1772972960422,4.62323533,1947.5,1946.6,0.00474045]
[1772972960625,4.62323533,1947.3,1946.6,0.00474045]
[1772972961422,4.62323533,1947.1,1946.2,4.61276788]
[1772972961819,4.62323533,1947.1,1946.3,4.61276788]
[1772972962421,4.62323533,1947.1,1946.3,4.61752232]
[1772972963623,4.62323533,1947.8,1946.5,4.61276788]
[1772972963823,4.62323533,1947.8,1946.7,4.61276788]
[1772972964828,4.62843327,1948.1,1946.9,4.61276788]
[1772972965126,4.62843327,1948.1,1947.1,4.61276788]
[1772972965525,4.62843327,1948.1,1947.3,4.61276788]
[1772972966719,0.00519794,1948.1,1947.3,4.61276788]
[1772972966926,4.62323533,1948.7,1947.3,4.86953788]
[1772972967123,4.62323533,1948.7,1947.5,4.61276788]
[1772972967524,4.62323533,1949.2,1947.9,4.61276788]
[1772972967832,4.62323533,1949.2,1948.1,4.61276788]
[1772972968028,4.62323533,1949.2,1948.1,4.61731099]
[1772972968029,4.62842604,1949.2,1948.1,4.61731099]
[1772972968530,0.00519071,1949.2,1948.3,4.61276788]
[1772972969331,4.62842604,1949.2,1948.3,4.61276788]
[1772972978141,4.62842604,1949.2,1948.1,0.00454311]
[1772972978142,4.54250168,1949.0,1948.1,4.60367445]
[1772972978440,5.52720101,1948.9,1948.1,0.00454311]
[1772972978636,4.54250168,1948.8,1948.1,0.00454311]
[1772972978840,4.54250168,1948.8,1948.1,4.60367445]
[1772972979342,4.54250168,1948.6,1947.5,20.81613134]
[1772972979638,4.54250168,1948.4,1947.6,4.59913134]
[1772972980334,4.54250168,1948.4,1947.6,4.60304348]
[1772972980540,3.26005782,1948.4,1947.6,4.60304348]
[1772972980841,4.54250168,1948.2,1947.6,0.00391214]
[1772972981537,4.54250168,1948.2,1947.6,4.60304348]
[1772972982137,4.54250168,1948.4,1947.6,4.60304348]
[1772972982941,4.54250168,1949.0,1947.6,4.60304348]
[1772972983341,4.54250168,1948.9,1947.6,4.60304348]
[1772972983742,4.54250168,1948.7,1947.6,4.60304348]
[1772972985042,0.00119465,1948.3,1947.6,4.60304348]
[1772972986144,4.54369633,1948.3,1947.6,4.60304348]
[1772972986848,4.54250168,1949.1,1947.6,4.60304348]
[1772972987045,4.54250168,1949.1,1947.8,4.59913134]
[1772972987242,4.54250168,1949.0,1947.8,4.59913134]
[1772972987643,0.00519071,1949.2,1947.8,4.59913134]
[1772972987644,4.54250168,1948.8,1947.8,4.59913134]
[1772972988445,4.54250168,1949.1,1948.0,4.59913134]
[1772972988749,4.54250168,1949.1,1947.9,5.5680235]
[1772972988750,4.54250168,1949.1,1948.2,4.59913134]
[1772972988942,4.54250168,1949.1,1948.3,4.59913134]
[1772972992049,4.54250168,1949.1,1948.0,4.59913134]
[1772972992248,4.54250168,1948.9,1948.0,4.59913134]
[1772972994243,4.54250168,1949.1,1948.0,4.59913134]
[1772972997845,4.54250168,1948.9,1948.0,4.59913134]
[1772972998246,4.54250168,1948.7,1948.0,4.59913134]
[1772972998446,10.13073628,1948.8,1948.0,4.59913134]
[1772972998649,4.54250168,1948.8,1948.0,4.59913134]
[1772972998952,4.54250168,1948.8,1947.6,4.60304348]
[1772972999252,3.12958794,1948.6,1947.6,4.60304348]
[1772972999648,3.12958794,1948.4,1947.6,4.60304348]
[1772973000246,3.12958794,1948.4,1947.6,0.00391214]
[1772973000451,3.30288714,1948.2,1946.9,4.59913134]
[1772973000852,3.30099119,1948.0,1946.9,4.59913134]
[1772973001251,2.96779514,1947.8,1946.9,4.59913134]
[1772973001447,2.97186214,1947.8,1946.9,4.60485207]
[1772973001754,0.32408818,1947.7,1946.9,4.60485207]
[1772973001949,2.96966663,1947.8,1946.9,4.60485207]
[1772973004648,2.96966663,1947.8,1946.9,4.39955207]
[1772973006557,2.96966663,1947.8,1946.9,0.00572073]
[1772973006558,3.09564976,1947.6,1946.9,0.00572073]
[1772973006754,3.09564976,1947.6,1946.9,4.59504683]
[1772973006955,3.09758806,1947.8,1946.9,4.59504683]
[1772973008355,3.10480207,1947.6,1946.9,4.59504683]
[1772973008952,5.54882671,1947.5,1946.9,4.59504683]
[1772973009155,3.10257867,1947.6,1946.9,4.59504683]
[1772973013361,5.89074751,1947.5,1946.9,0.00572073]
[1772973013661,3.05705419,1947.4,1946.9,4.59504683]
[1772973014556,3.05705419,1947.4,1946.9,0.00572073]
[1772973014764,3.04950703,1947.2,1946.5,4.5893261]
[1772973014957,3.04716384,1947.7,1946.5,4.5893261]
[1772973015162,8.95583611,1947.7,1946.5,4.5893261]
[1772973015361,3.02732074,1947.6,1946.5,4.5893261]
[1772973015561,3.02732074,1947.5,1946.5,4.5893261]
[1772973015856,3.02732074,1947.5,1946.5,4.5951749]
[1772973017761,3.02732074,1947.5,1946.6,4.5893261]
[1772973019964,2.9401716,1947.3,1946.6,4.5893261]
[1772973021769,2.98409481,1947.1,1946.6,4.5893261]
[1772973022766,2.98409481,1947.1,1946.5,0.0058488]
[1772973024173,2.98409481,1947.1,1946.5,4.5951749]
[1772973025474,2.98409481,1947.1,1946.5,0.0058488]
[1772973030276,2.98409481,1947.1,1946.5,4.5951749]
[1772973031174,2.98409481,1947.1,1946.3,4.5893261]
[1772973031482,3.43965782,1946.9,1945.9,4.5893261]
[1772973031674,3.43965782,1946.9,1946.1,4.5893261]
[1772973032369,3.43965782,1946.9,1946.1,4.5950973]
[1772973032773,3.44367529,1946.7,1946.1,4.5950973]
[1772973033477,6.98374,1947.6,1946.1,4.5950973]
[1772973033478,3.52949129,1947.4,1946.1,4.5950973]
[1772973033878,3.52694992,1947.2,1946.1,4.5950973]
[1772973034280,3.52737913,1947.0,1946.1,4.5950973]
[1772973035479,9.52002644,1946.9,1946.1,4.5950973]
[1772973035875,3.56374295,1946.9,1946.1,4.5950973]
[1772973036285,3.56155633,1947.4,1946.1,4.5950973]
[1772973036687,3.56155633,1947.3,1946.1,4.5950973]
[1772973037087,3.55892388,1947.1,1946.1,4.5950973]
[1772973039791,3.58552319,1946.9,1946.1,4.5950973]
[1772973040385,6.728,1947.5,1946.1,4.5950973]
[1772973040386,3.58330312,1946.7,1946.1,4.5950973]
[1772973045497,3.58330312,1946.7,1946.1,0.0057712]
[1772973045888,3.58330312,1946.7,1946.1,4.58827477]
[1772973046893,3.63736113,1947.2,1946.1,4.58827477]
[1772973047297,3.63451277,1947.1,1946.1,4.58827477]
[1772973047800,3.63451277,1946.9,1946.1,4.58827477]
[1772973048201,8.95522333,1946.8,1946.1,4.58827477]
[1772973048596,3.63225275,1946.8,1946.1,4.58827477]
[1772973053603,3.63225275,1946.8,1946.1,0.0057712]
[1772973053804,4.3724785,1946.6,1946.1,4.58827477]
[1772973055202,4.3724785,1946.6,1946.1,0.0057712]
[1772973055501,5.69223935,1946.5,1945.9,4.58250357]
[1772973055702,4.37879607,1946.6,1945.9,4.58250357]
[1772973056406,4.37879607,1946.6,1945.9,4.58688026]
[1772973061408,4.37879607,1946.6,1945.9,0.00437669]
[1772973061615,4.38379848,1946.4,1945.4,20.88789594]
[1772973062114,4.38068737,1946.2,1945.4,4.78780357]
[1772973062317,5.56271301,1946.3,1945.4,4.78780357]
[1772973062508,0.00515564,1946.3,1945.4,4.79419595]
[1772973062715,0.00515564,1946.3,1945.6,4.35355907]
[1772973062915,4.38161172,1946.7,1945.8,4.35355907]
[1772973063315,9.9678013,1946.6,1945.8,4.35355907]
[1772973063618,4.36899175,1946.6,1945.8,4.35355907]
[1772973063819,4.37550787,1946.6,1945.8,4.35355907]
[1772973064823,6.485,1947.6,1946.0,4.48267664]
[1772973064824,4.37456211,1947.6,1946.0,4.48267664]
[1772973065218,4.50828836,1947.2,1946.1,16.10009237]
[1772973065415,4.50828836,1947.2,1946.3,4.48267664]
[1772973065619,4.50828836,1947.2,1946.5,4.48267664]
[1772973065826,4.51290011,1947.2,1946.5,4.48267664]
[1772973069728,4.52640898,1947.8,1946.5,4.48267664]
[1772973070226,4.52751427,1947.5,1946.5,4.48267664]
[1772973070724,10.45065048,1947.4,1946.5,4.48267664]
[1772973070921,4.52854033,1947.3,1946.5,4.48267664]
[1772973074321,4.52854033,1947.3,1946.7,4.48267664]
[1772973076925,4.53659276,1947.4,1946.7,4.48267664]
[1772973077126,0.0065701,1947.5,1946.7,4.48267664]
[1772973077127,4.54316286,1947.5,1946.7,4.48267664]
[1772973081031,0.0065701,1947.5,1946.7,4.48267664]
[1772973081230,0.0065701,1947.5,1946.9,4.48267664]
[1772973081426,4.54316286,1947.5,1947.1,4.48267664]
[1772973081625,4.54316286,1947.5,1947.2,4.48267664]
[1772973081823,0.00149831,1947.5,1947.2,4.48267664]
[1772973083126,4.53809107,1947.5,1947.2,4.48267664]
[1772973083332,4.53809107,1947.5,1947.0,4.48267664]
[1772973083533,0.00149831,1947.5,1947.1,4.48267664]
[1772973083934,4.53659276,1947.8,1947.1,4.48267664]
[1772973084134,10.12,1948.1,1947.1,4.48267664]
[1772973084135,4.53659276,1948.1,1947.1,4.48267664]
[1772973084933,4.54020215,1948.1,1947.2,20.64567664]
[1772973085135,4.54020215,1948.1,1947.3,4.48267664]
[1772973085436,4.54020215,1948.1,1947.3,20.64667664]
[1772973085634,4.54020215,1948.1,1947.3,4.48267664]
[1772973085837,4.53659276,1947.9,1947.3,4.48267664]
[1772973086036,4.53659276,1947.9,1947.0,4.48267664]
[1772973086232,4.53659276,1947.7,1946.9,0.00601986]
[1772973086432,4.53659276,1947.7,1946.7,4.48267664]
[1772973086739,4.53659276,1947.5,1946.7,4.48267664]
[1772973087135,4.53659276,1947.3,1946.7,4.48267664]
[1772973087534,4.53659276,1947.3,1946.7,4.48875301]
[1772973088533,4.53659276,1947.7,1946.7,4.48875301]
[1772973088937,4.53659276,1947.6,1946.7,4.48875301]
[1772973089335,4.53659276,1947.4,1946.7,4.48875301]
[1772973092836,4.724407,1947.7,1946.7,4.48875301]
[1772973093236,4.724407,1947.6,1946.7,4.48875301]
[1772973094638,4.724407,1947.6,1946.8,4.62537622]
[1772973095039,4.724407,1947.4,1946.7,0.00607637]
[1772973095439,5.3721212,1947.3,1946.7,4.63145259]
[1772973095643,4.724407,1947.6,1946.7,4.63145259]
[1772973095942,4.724407,1947.5,1946.7,4.63145259]
[1772973098042,4.724407,1947.3,1946.7,4.63145259]
[1772973100645,4.724407,1947.3,1946.7,0.00607637]
[1772973101345,4.724407,1947.3,1946.7,4.63145259]
[1772973104048,4.724407,1947.1,1946.5,4.62537622]
[1772973105050,4.724407,1947.1,1946.5,4.63033289]
[1772973114762,10.926197,1947.3,1946.5,4.63033289]
[1772973115067,4.19945888,1947.2,1946.5,4.63033289]
[1772973116768,4.18460104,1947.4,1946.5,4.63033289]
[1772973118665,4.18763071,1947.2,1946.5,4.63033289]
[1772973118866,5.51673837,1947.3,1946.5,4.63033289]
[1772973119168,4.17737074,1947.7,1946.5,4.63033289]
[1772973119468,9.70683331,1947.7,1946.5,4.63033289]
[1772973119667,9.70683331,1947.7,1946.7,4.62537622]
[1772973119870,4.17737074,1947.8,1946.7,4.62537622]
[1772973120072,4.17737074,1947.8,1946.8,4.62537622]
[1772973120462,4.17737074,1947.8,1946.9,4.62537622]
[1772973120667,4.17753706,1947.9,1947.1,4.62537622]
[1772973123476,4.32775281,1947.7,1947.1,4.62537622]
[1772973124875,4.32816306,1948.0,1947.1,4.62537622]
[1772973125070,4.33929399,1948.1,1947.1,4.62537622]
[1772973125271,4.33929399,1948.1,1947.1,4.88217622]
[1772973125272,0.00360939,1948.1,1947.1,4.88217622]
[1772973125676,0.00360939,1948.1,1947.2,4.58774881]
[1772973127971,14.47112098,1948.7,1947.4,4.58774881]
[1772973128177,4.35112098,1948.7,1947.6,4.58774881]
[1772973128881,4.35112098,1948.7,1947.4,4.58774881]
[1772973128882,4.35110932,1948.5,1947.4,4.58774881]
[1772973129179,4.35868706,1948.3,1947.4,4.58774881]
[1772973129381,4.35868706,1948.2,1947.4,4.58774881]
[1772973129579,4.35868706,1948.1,1947.4,4.58774881]
[1772973133175,4.54375268,1947.9,1946.8,16.10009237]
[1772973133380,4.54375268,1947.9,1947.0,4.58774881]
[1772973135884,4.53755207,1947.7,1947.0,4.58774881]
[1772973136680,4.53636453,1947.5,1946.6,4.58774881]
[1772973137080,4.53504752,1947.3,1946.6,4.58774881]
[1772973137280,4.54010454,1947.3,1946.6,4.58774881]
[1772973137982,4.53416816,1947.1,1946.5,0.00495667]
[1772973138180,4.53416816,1947.1,1946.2,4.58774881]
[1772973138383,4.52929836,1946.9,1946.2,4.58774881]
[1772973138881,4.52929836,1946.9,1946.0,16.085]
[1772973138882,4.52929836,1946.9,1946.1,4.58774881]
[1772973139184,5.86761181,1946.8,1946.1,4.59185357]
[1772973139385,4.52437248,1946.7,1946.1,4.59185357]
[1772973142780,0.00505702,1947.3,1946.1,4.59185357]
[1772973142986,4.31954699,1947.2,1946.1,4.59185357]
[1772973143287,4.30929127,1946.9,1946.1,4.59185357]
[1772973143986,6.73205702,1947.3,1946.1,4.59185357]
[1772973144187,4.30800176,1947.2,1946.1,4.59185357]
[1772973144382,5.50196048,1947.2,1946.1,4.59185357]
[1772973144584,0.00505702,1947.3,1946.3,4.58774881]
[1772973144778,0.00505702,1947.3,1946.5,4.58774881]
[1772973145779,4.30147411,1947.7,1946.5,4.58774881]
[1772973146688,4.30809742,1947.7,1946.5,4.58774881]
[1772973147388,4.30809742,1947.7,1946.7,4.58774881]
[1772973151091,4.31479019,1947.5,1946.7,4.58774881]
[1772973151495,4.29975995,1947.3,1946.7,4.58774881]
[1772973151897,4.29856855,1947.4,1946.7,4.58774881]
[1772973153995,4.24944972,1947.6,1946.7,4.58774881]
[1772973154398,4.24955243,1947.5,1946.7,4.58774881]
[1772973157298,4.25633418,1947.7,1946.7,4.58774881]
[1772973158100,0.00662331,1947.7,1946.7,4.58774881]
[1772973159897,0.00662331,1947.7,1946.9,4.69621091]
[1772973160103,4.26202797,1948.4,1947.1,4.69621091]
[1772973160298,4.26202797,1948.4,1947.3,4.69621091]
[1772973161100,4.27390424,1948.2,1947.3,4.69621091]
[1772973161300,4.27390424,1948.2,1947.1,4.69621091]
[1772973161502,4.27390424,1948.0,1947.1,4.69621091]
[1772973161902,4.27285985,1947.8,1947.1,4.69621091]
[1772973164405,4.30824837,1947.6,1946.7,4.69621091]
[1772973165005,4.30730298,1947.9,1946.7,4.69621091]
[1772973165409,4.25848726,1947.8,1946.7,4.69621091]
[1772973165709,5.46166188,1947.7,1946.7,4.69621091]
[1772973166008,4.25848726,1947.6,1946.7,4.69621091]
[1772973171810,4.1786735,1947.4,1946.8,4.69621091]
[1772973172013,4.17774009,1947.6,1946.8,4.69621091]
[1772973178013,4.2012124,1947.9,1946.8,4.69621091]
[1772973178313,4.20129468,1947.8,1946.8,4.69621091]
[1772973178714,4.20129468,1947.6,1946.8,4.69621091]
[1772973179014,5.38727426,1947.5,1946.8,4.69621091]
[1772973179216,4.20043692,1947.4,1946.8,4.69621091]
[1772973180621,4.20043692,1947.4,1946.3,16.10009237]
[1772973180622,4.20043692,1947.4,1946.6,4.69621091]
[1772973180912,4.21067722,1947.2,1946.0,20.79630328]
[1772973181210,4.21270062,1946.8,1945.5,4.69621091]
[1772973181417,4.21270062,1946.6,1945.5,4.69621091]
[1772973181712,5.52494513,1946.5,1945.5,4.69621091]
[1772973182117,4.21655328,1946.5,1945.5,4.70193234]
[1772973182315,4.21655328,1946.5,1945.7,4.69621091]
[1772973182919,4.21006971,1946.9,1945.7,4.69621091]
[1772973183413,4.20641759,1947.1,1945.7,4.69621091]
[1772973183611,4.20641759,1947.1,1945.9,4.60479259]
[1772973184012,4.21217306,1947.1,1945.9,4.60479259]
[1772973186617,4.22664628,1946.9,1946.1,4.38299195]
[1772973188622,0.00575547,1947.1,1946.1,4.38299195]
[1772973188828,4.23116779,1947.9,1946.3,4.38299195]
[1772973189223,4.30685708,1947.7,1946.5,4.38299195]
[1772973189529,4.30685708,1947.7,1946.7,4.38299195]
[1772973189725,4.31072548,1947.7,1946.7,4.38299195]
[1772973190123,4.30625585,1947.5,1946.7,4.38299195]
[1772973190629,4.30625585,1947.3,1946.7,4.38299195]
[1772973191124,4.30457318,1947.1,1946.4,4.38299195]
[1772973193731,4.31872006,1947.6,1946.4,4.38299195]
[1772973194135,4.3180362,1947.5,1946.4,4.38299195]
[1772973194537,4.31809122,1947.3,1946.4,4.38299195]
[1772973194932,4.31742498,1947.1,1946.4,4.38299195]
[1772973203637,4.29188558,1947.5,1946.4,4.38299195]
[1772973204042,4.29126966,1947.3,1946.4,4.38299195]
[1772973204343,4.29132029,1947.1,1946.4,4.38299195]
[1772973205747,4.27093674,1947.6,1946.4,4.38299195]
[1772973206246,4.27044435,1947.5,1946.4,4.38299195]
[1772973206548,4.27044435,1947.3,1946.4,4.38299195]
[1772973210449,4.32925873,1947.1,1946.5,4.38299195]
[1772973212351,4.33136537,1947.6,1946.5,4.38299195]
[1772973212852,4.33474072,1947.5,1946.5,4.38299195]
[1772973213351,4.3393802,1947.3,1946.5,4.38299195]
[1772973217953,4.3393802,1947.3,1945.8,65.98893101]
[1772973218253,9.77193972,1947.2,1946.0,4.36648764]
[1772973218758,4.37504208,1947.1,1946.2,4.36648764]
[1772973218960,4.37447949,1947.0,1946.2,4.36648764]
[1772973219757,4.39732209,1946.8,1946.0,4.36648764]
[1772973219962,4.39732209,1946.8,1945.6,4.36648764]
[1772973220158,4.39681155,1946.6,1945.6,4.36648764]
[1772973220561,4.39681155,1946.4,1945.6,4.36648764]
[1772973220859,4.39681155,1946.5,1945.6,4.36648764]
[1772973221057,4.49754644,1946.2,1945.2,4.36648764]
[1772973221259,4.49754644,1946.2,1944.6,4.36648764]
[1772973221459,4.49754644,1946.0,1944.6,4.36648764]
[1772973221662,4.49754644,1945.8,1944.6,4.36648764]
[1772973221955,4.49754644,1945.6,1944.1,4.36648764]
[1772973222158,4.50340448,1945.6,1944.1,4.3717604]